Workbook

Sheet Sneakers women
B1: Article | C1: Description | D1: RealStock | E1: Wholesale | F1: Retail
B2: CARMEN_CRACK_01 DUST S38 | C2: 16115005 | D2: 1 | E2: =F2/2.3 -> 60.84782609 | F2: 139.95
B3: CARMEN_CRACK_01 GOLD S37 | C3: 16115005 | D3: 1 | E3: 60.84782609 | F3: 139.95
A4: ++ | B4: CARMEN_CRACK_01 GOLD S38 | C4: 16115005 | D4: 1 | E4: 60.84782609 | F4: 139.95
B5: CARMEN_CRACK_01 INDIGO S40 | C5: 16115005 | D5: 1 | E5: 60.84782609 | F5: 139.95
B6: CARMEN_FANTASY BLACK_LEOPARD S36 | C6: 15111204 | D6: 7 | E6: 60.84782609 | F6: 139.95
A7: NO IMAGE | B7: CLYDE_01 BRICK S45 | C7: 14121301 | D7: 1 | E7: 60.84782609 | F7: 139.95
B8: CRAVEN_FLOWER COBALT S44 | C8: 15121003 | D8: 3 | E8: 60.84782609 | F8: 139.95
B9: HOLLY_VINTAGE INDIGO S38 | C9: 15131102 | D9: 1 | E9: 73.89130435 | F9: 169.95
A10: ++ | B10: HOLLY_VINTAGE INDIGO S39 | C10: 15131102 | D10: 2 | E10: 73.89130435 | F10: 169.95
A11: ++ | B11: HOLLY_VINTAGE INDIGO S40 | C11: 15131102 | D11: 2 | E11: 73.89130435 | F11: 169.95
A12: ++ | B12: HOLLY_VINTAGE INDIGO S41 | C12: 15131102 | D12: 1 | E12: =F12/2.3 -> 73.89130435 | F12: 169.95
B13: HOLLY_VINTAGE NERO S36 | C13: 15131102 | D13: 5 | E13: 73.89130435 | F13: 169.95
A14: ++ | B14: HOLLY_VINTAGE NERO S37 | C14: 15131102 | D14: 19 | E14: 73.89130435 | F14: 169.95
A15: ++ | B15: HOLLY_VINTAGE NERO S38 | C15: 15131102 | D15: 22 | E15: 73.89130435 | F15: 169.95
A16: ++ | B16: HOLLY_VINTAGE NERO S39 | C16: 15131102 | D16: 14 | E16: 73.89130435 | F16: 169.95
A17: ++ | B17: HOLLY_VINTAGE NERO S40 | C17: 15131102 | D17: 16 | E17: 73.89130435 | F17: 169.95
A18: ++ | B18: HOLLY_VINTAGE NERO S41 | C18: 15131102 | D18: 14 | E18: 73.89130435 | F18: 169.95
A19: ++ | B19: HOLLY_VINTAGE NERO S42 | C19: 15131102 | D19: 3 | E19: 73.89130435 | F19: 169.95
B20: HOLLY_VINTAGE SMOKE S36 | C20: 15131102 | D20: 3 | E20: 73.89130435 | F20: 169.95
A21: ++ | B21: HOLLY_VINTAGE SMOKE S37 | C21: 15131102 | D21: 4 | E21: 73.89130435 | F21: 169.95
A22: ++ | B22: HOLLY_VINTAGE SMOKE S38 | C22: 15131102 | D22: 16 | E22: 73.89130435 | F22: 169.95
A23: ++ | B23: HOLLY_VINTAGE SMOKE S39 | C23: 15131102 | D23: 15 | E23: 73.89130435 | F23: 169.95
A24: ++ | B24: HOLLY_VINTAGE SMOKE S40 | C24: 15131102 | D24: 15 | E24: 73.89130435 | F24: 169.95
A25: ++ | B25: HOLLY_VINTAGE SMOKE S41 | C25: 15131102 | D25: 7 | E25: 73.89130435 | F25: 169.95
A26: ++ | B26: HOLLY_VINTAGE SMOKE S42 | C26: 15131102 | D26: 1 | E26: 73.89130435 | F26: 169.95
B27: HUNTER W TUMBLE 0700 WHITE 36 | C27: 1711 802126 | D27: 1 | E27: 65.19565217 | F27: 149.95
A28: ++ | B28: HUNTER W TUMBLE 0700 WHITE 37 | C28: 1711 802126 | D28: 4 | E28: 65.19565217 | F28: 149.95
A29: ++ | B29: HUNTER W TUMBLE 0700 WHITE 38 | C29: 1711 802126 | D29: 6 | E29: 65.19565217 | F29: 149.95
A30: ++ | B30: HUNTER W TUMBLE 0700 WHITE 39 | C30: 1711 802126 | D30: 7 | E30: 65.19565217 | F30: 149.95
A31: ++ | B31: HUNTER W TUMBLE 0700 WHITE 40 | C31: 1711 802126 | D31: 4 | E31: 65.19565217 | F31: 149.95
A32: ++ | B32: HUNTER W TUMBLE 0700 WHITE 41 | C32: 1711 802126 | D32: 3 | E32: 65.19565217 | F32: 149.95
A33: ++ | B33: HUNTER W TUMBLE 0700 WHITE 42 | C33: 1711 802126 | D33: 1 | E33: 65.19565217 | F33: 149.95
B34: HUNTER W TUMBLE 2500 LIGHT GREY 37 | C34: 1711 802126 | D34: 1 | E34: 65.19565217 | F34: 149.95
A35: ++ | B35: HUNTER W TUMBLE 2500 LIGHT GREY 39 | C35: 1711 802126 | D35: 1 | E35: 65.19565217 | F35: 149.95
B36: HUNTER W TUMBLE 3100 OLD PINK 37 | C36: 1711 802126 | D36: 2 | E36: 65.19565217 | F36: 149.95
A37: ++ | B37: HUNTER W TUMBLE 3100 OLD PINK 38 | C37: 1711 802126 | D37: 2 | E37: 65.19565217 | F37: 149.95
A38: ++ | B38: HUNTER W TUMBLE 3100 OLD PINK 39 | C38: 1711 802126 | D38: 4 | E38: 65.19565217 | F38: 149.95
A39: ++ | B39: HUNTER W TUMBLE 3100 OLD PINK 40 | C39: 1711 802126 | D39: 2 | E39: 65.19565217 | F39: 149.95
A40: ++ | B40: HUNTER W TUMBLE 3100 OLD PINK 41 | C40: 1711 802126 | D40: 2 | E40: 65.19565217 | F40: 149.95
B41: HUNTER_FANTASY_WMN DUST S36 | C41: 16110404 | D41: 1 | E41: 69.54347826 | F41: 159.95
A42: ++ | B42: HUNTER_FANTASY_WMN DUST S37 | C42: 16110404 | D42: 2 | E42: 69.54347826 | F42: 159.95
B43: HUNTER_FANTASY_WMN TAUPE S36 | C43: 16110404 | D43: 1 | E43: 69.54347826 | F43: 159.95
A44: ++ | B44: HUNTER_FANTASY_WMN TAUPE S37 | C44: 16110404 | D44: 1 | E44: 69.54347826 | F44: 159.95
A45: NO IMAGE | B45: HUNTER_LIZZARD MARINE S44 | C45: 16121305 | D45: 1 | E45: 65.19565217 | F45: 149.95
B46: HUNTER_PERFO_WMN SAND S40 | C46: 16110401 | D46: 1 | E46: 60.84782609 | F46: 139.95
B47: HUNTER_PERFO_WMN STONE S36 | C47: 16110401 | D47: 2 | E47: 60.84782609 | F47: 139.95
A48: ++ | B48: HUNTER_PERFO_WMN STONE S37 | C48: 16110401 | D48: 4 | E48: 60.84782609 | F48: 139.95
B49: IVY_LIZZARD_01 OFFWHITE S37 | C49: 16111302 | D49: 2 | E49: 65.19565217 | F49: 149.95
B50: IVY_LIZZARD_01 TAUPE S36 | C50: 16111302 | D50: 2 | E50: 65.19565217 | F50: 149.95
A51: ++ | B51: IVY_LIZZARD_01 TAUPE S37 | C51: 16111302 | D51: 1 | E51: 65.19565217 | F51: 149.95
B52: IVY_METALLIC NERO S36 | C52: 15131203 | D52: 1 | E52: 65.19565217 | F52: 149.95
A53: ++ | B53: IVY_METALLIC NERO S37 | C53: 15131203 | D53: 9 | E53: 65.19565217 | F53: 149.95
A54: ++ | B54: IVY_METALLIC NERO S38 | C54: 15131203 | D54: 6 | E54: 65.19565217 | F54: 149.95
A55: ++ | B55: IVY_METALLIC NERO S39 | C55: 15131203 | D55: 16 | E55: 65.19565217 | F55: 149.95
A56: ++ | B56: IVY_METALLIC NERO S40 | C56: 15131203 | D56: 4 | E56: 65.19565217 | F56: 149.95
A57: ++ | B57: IVY_METALLIC NERO S41 | C57: 15131203 | D57: 3 | E57: 65.19565217 | F57: 149.95
B58: IVY_METALLIC SAND S36 | C58: 15131203 | D58: 4 | E58: 65.19565217 | F58: 149.95
A59: ++ | B59: IVY_METALLIC SAND S37 | C59: 15131203 | D59: 10 | E59: 65.19565217 | F59: 149.95
A60: ++ | B60: IVY_METALLIC SAND S38 | C60: 15131203 | D60: 19 | E60: 65.19565217 | F60: 149.95
A61: ++ | B61: IVY_METALLIC SAND S39 | C61: 15131203 | D61: 19 | E61: 65.19565217 | F61: 149.95
A62: ++ | B62: IVY_METALLIC SAND S40 | C62: 15131203 | D62: 9 | E62: 65.19565217 | F62: 149.95
A63: ++ | B63: IVY_METALLIC SAND S41 | C63: 15131203 | D63: 3 | E63: 65.19565217 | F63: 149.95
B64: IVY_METALLIC_LIZZARD TAUPE S41 | C64: 16111303 | D64: 1 | E64: 69.54347826 | F64: 159.95
B65: LINDSAY TREE 5000 SAND 38 | C65: 1711 812104 | D65: 2 | E65: =F65/2.3 -> 47.80434783 | F65: 109.95
A66: ++ | B66: LINDSAY TREE 5000 SAND 40 | C66: 1711 812104 | D66: 2 | E66: 47.80434783 | F66: 109.95
B67: LINDSAY TUMBLE 0700 WHITE 36 | C67: 1711 812102 | D67: 1 | E67: 47.80434783 | F67: 109.95
A68: ++ | B68: LINDSAY TUMBLE 0700 WHITE 37 | C68: 1711 812102 | D68: 1 | E68: 47.80434783 | F68: 109.95
A69: ++ | B69: LINDSAY TUMBLE 0700 WHITE 38 | C69: 1711 812102 | D69: 1 | E69: 47.80434783 | F69: 109.95
A70: NO IMAGE | B70: LIZ_BASIC_01 INDIGO S38 | C70: 15130901 | D70: 1 | E70: 56.5 | F70: 129.95
A71: NO IMAGE | B71: LIZ_BASIC_01 TAUPE S36 | C71: 15130901 | D71: 1 | E71: 56.5 | F71: 129.95
A72: NO IMAGE | B72: LIZ_BASIC_01 TAUPE S37 | C72: 15130901 | D72: 1 | E72: 56.5 | F72: 129.95
B73: LIZ_FANTASY NERO_STRIPES S36 | C73: 15130902 | D73: 1 | E73: 60.84782609 | F73: 139.95
A74: ++ | B74: LIZ_FANTASY NERO_STRIPES S37 | C74: 15130902 | D74: 9 | E74: 60.84782609 | F74: 139.95
A75: ++ | B75: LIZ_FANTASY NERO_STRIPES S38 | C75: 15130902 | D75: 5 | E75: 60.84782609 | F75: 139.95
A76: ++ | B76: LIZ_FANTASY NERO_STRIPES S39 | C76: 15130902 | D76: 4 | E76: 60.84782609 | F76: 139.95
A77: ++ | B77: LIZ_FANTASY NERO_STRIPES S41 | C77: 15130902 | D77: 1 | E77: 60.84782609 | F77: 139.95
A78: ++ | B78: LIZ_FANTASY NERO_STRIPES S42 | C78: 15130902 | D78: 1 | E78: 60.84782609 | F78: 139.95
B79: LIZ_SNAKE_METALLIC DUST S36 | C79: 16110502 | D79: 1 | E79: 56.5 | F79: 129.95
A80: NO IMAGE | B80: LIZ_SNAKE_METALLIC OLD_PINK S36 | C80: 16110502 | D80: 1 | E80: 56.5 | F80: 129.95
B81: LIZ_SNAKE_METALLIC RED_GOLD S36 | C81: 15110501 | D81: 1 | E81: 56.5 | F81: 129.95
A82: ++ | B82: LIZ_SNAKE_METALLIC RED_GOLD S39 | C82: 15110501 | D82: 2 | E82: 56.5 | F82: 129.95
B83: LOGAN AZZURO S36 | C83: 14111601 | D83: 1 | E83: 39.10869565 | F83: 89.95
B84: LOGAN CREAM S36 | C84: 14111601 | D84: 1 | E84: 39.10869565 | F84: 89.95
B85: LOGAN LEMON S36 | C85: 14111601 | D85: 1 | E85: 39.10869565 | F85: 89.95
B86: LOGAN NATURAL S36 | C86: 14111601 | D86: 2 | E86: 39.10869565 | F86: 89.95
B87: LOGAN TREE 0700 WHITE 36 | C87: 1711 806113 | D87: 1 | E87: 43.45652174 | F87: 99.95
A88: ++ | B88: LOGAN TREE 0700 WHITE 37 | C88: 1711 806113 | D88: 1 | E88: 43.45652174 | F88: 99.95
A89: ++ | B89: LOGAN TREE 0700 WHITE 38 | C89: 1711 806113 | D89: 1 | E89: 43.45652174 | F89: 99.95
A90: ++ | B90: LOGAN TREE 0700 WHITE 40 | C90: 1711 806113 | D90: 1 | E90: 43.45652174 | F90: 99.95
A91: ++ | B91: LOGAN TREE 0700 WHITE 41 | C91: 1711 806113 | D91: 1 | E91: 43.45652174 | F91: 99.95
B92: LOGAN TREE 2500 LIGHT GREY 38 | C92: 1711 806113 | D92: 2 | E92: 43.45652174 | F92: 99.95
A93: ++ | B93: LOGAN TREE 2500 LIGHT GREY 39 | C93: 1711 806113 | D93: 1 | E93: 43.45652174 | F93: 99.95
A94: ++ | B94: LOGAN TREE 2500 LIGHT GREY 41 | C94: 1711 806113 | D94: 1 | E94: 43.45652174 | F94: 99.95
B95: LOGAN_BUFFALO DUST S39 | C95: 15110403 | D95: 1 | E95: 39.10869565 | F95: 89.95
B96: LOGAN_BUFFALO NATURAL S36 | C96: 15110403 | D96: 5 | E96: 39.10869565 | F96: 89.95
A97: ++ | B97: LOGAN_BUFFALO NATURAL S37 | C97: 15110403 | D97: 6 | E97: 39.10869565 | F97: 89.95
A98: ++ | B98: LOGAN_BUFFALO NATURAL S38 | C98: 15110403 | D98: 16 | E98: 39.10869565 | F98: 89.95
A99: ++ | B99: LOGAN_BUFFALO NATURAL S39 | C99: 15110403 | D99: 29 | E99: 39.10869565 | F99: 89.95
A100: ++ | B100: LOGAN_BUFFALO NATURAL S40 | C100: 15110403 | D100: 25 | E100: 39.10869565 | F100: 89.95
A101: ++ | B101: LOGAN_BUFFALO NATURAL S41 | C101: 15110403 | D101: 8 | E101: 39.10869565 | F101: 89.95
B102: LOGAN_LIZZARD SMOKE S36 | C102: 15110402 | D102: 1 | E102: 43.45652174 | F102: 99.95
B103: LOGAN_SNAKE_METALLIC RED_GOLD S36 | C103: 15110401 | D103: 6 | E103: 43.45652174 | F103: 99.95
A104: ++ | B104: LOGAN_SNAKE_METALLIC RED_GOLD S37 | C104: 15110401 | D104: 15 | E104: 43.45652174 | F104: 99.95
A105: ++ | B105: LOGAN_SNAKE_METALLIC RED_GOLD S38 | C105: 15110401 | D105: 24 | E105: 43.45652174 | F105: 99.95
A106: ++ | B106: LOGAN_SNAKE_METALLIC RED_GOLD S39 | C106: 15110401 | D106: 51 | E106: 43.45652174 | F106: 99.95
A107: ++ | B107: LOGAN_SNAKE_METALLIC RED_GOLD S40 | C107: 15110401 | D107: 29 | E107: 43.45652174 | F107: 99.95
A108: ++ | B108: LOGAN_SNAKE_METALLIC RED_GOLD S41 | C108: 15110401 | D108: 13 | E108: 43.45652174 | F108: 99.95
B109: LOGAN_VINTAGE INDIGO S36 | C109: 16110102 | D109: 1 | E109: 43.45652174 | F109: 99.95
B110: LOGAN_VINTAGE NATURAL S40 | C110: 16110102 | D110: 1 | E110: 43.45652174 | F110: 99.95
A111: NO IMAGE | B111: LOGAN_VINTAGE TAUPE S36 | C111: 16110102 | D111: 1 | E111: 43.45652174 | F111: 99.95
A112: NO IMAGE | B112: LOGAN_VINTAGE TAUPE S37 | C112: 16110102 | D112: 3 | E112: 43.45652174 | F112: 99.95
A113: NO IMAGE | B113: LOGAN_VINTAGE TAUPE S38 | C113: 16110102 | D113: 2 | E113: 43.45652174 | F113: 99.95
B114: RAYA_CRACK AQUA S38 | C114: 13110503 | D114: 1 | E114: =F114/2.3 -> 73.89130435 | F114: 169.95
B115: RAYA_CROCO OLD_PINK S38 | C115: 13110502 | D115: 1 | E115: =F115/2.3 -> 69.54347826 | F115: 159.95
A116: NO IMAGE | B116: TASCHA CROCO OLD PINK MT 39 | C116: 14110101 | D116: 1 | E116: =F116/2.3 -> 56.5 | F116: 129.95
B117: TASCHA II CROCO 02 0700 WHITE 36 | C117: 1711 808113 | D117: 1 | E117: 65.19565217 | F117: 149.95
A118: ++ | B118: TASCHA II CROCO 02 0700 WHITE 40 | C118: 1711 808113 | D118: 1 | E118: 65.19565217 | F118: 149.95
B119: TASCHA II SNAKE 02 0100 OFFWHITE 36 | C119: 1711 808114 | D119: 1 | E119: 65.19565217 | F119: 149.95
A120: ++ | B120: TASCHA II SNAKE 02 0100 OFFWHITE 37 | C120: 1711 808114 | D120: 2 | E120: 65.19565217 | F120: 149.95
A121: ++ | B121: TASCHA II SNAKE 02 0100 OFFWHITE 38 | C121: 1711 808114 | D121: 1 | E121: 65.19565217 | F121: 149.95
A122: ++ | B122: TASCHA II SNAKE 02 0100 OFFWHITE 39 | C122: 1711 808114 | D122: 4 | E122: 65.19565217 | F122: 149.95
A123: ++ | B123: TASCHA II SNAKE 02 0100 OFFWHITE 40 | C123: 1711 808114 | D123: 3 | E123: 65.19565217 | F123: 149.95
A124: ++ | B124: TASCHA II SNAKE 02 0100 OFFWHITE 41 | C124: 1711 808114 | D124: 1 | E124: =F124/2.3 -> 65.19565217 | F124: 149.95
A125: ++ | B125: TASCHA II SNAKE 02 0100 OFFWHITE 42 | C125: 1711 808114 | D125: 1 | E125: 65.19565217 | F125: 149.95
B126: TASCHA II SNAKE 02 2500 LIGHT GREY 36 | C126: 1711 808114 | D126: 1 | E126: 65.19565217 | F126: 149.95
A127: ++ | B127: TASCHA II SNAKE 02 2500 LIGHT GREY 37 | C127: 1711 808114 | D127: 2 | E127: 65.19565217 | F127: 149.95
A128: ++ | B128: TASCHA II SNAKE 02 2500 LIGHT GREY 38 | C128: 1711 808114 | D128: 2 | E128: 65.19565217 | F128: 149.95
A129: ++ | B129: TASCHA II SNAKE 02 2500 LIGHT GREY 39 | C129: 1711 808114 | D129: 4 | E129: 65.19565217 | F129: 149.95
A130: ++ | B130: TASCHA II SNAKE 02 2500 LIGHT GREY 40 | C130: 1711 808114 | D130: 2 | E130: 65.19565217 | F130: 149.95
A131: ++ | B131: TASCHA II SNAKE 02 2500 LIGHT GREY 41 | C131: 1711 808114 | D131: 2 | E131: 65.19565217 | F131: 149.95
B132: TASCHA II TREE 0100 OFFWHITE 37 | C132: 1711 808112 | D132: 1 | E132: 65.19565217 | F132: 149.95
B133: TASCHA_CROCO OLD_PINK S39 | C133: 15110101 | D133: 1 | E133: 56.5 | F133: 129.95
B134: TASCHA_CROCO_VERNIZ COGNAC S37 | C134: 13110401 | D134: 1 | E134: 65.19565217 | F134: 149.95
A135: ++ | B135: TASCHA_CROCO_VERNIZ COGNAC S41 | C135: 13110401 | D135: 1 | E135: 65.19565217 | F135: 149.95
A137: NO IMAGE | B137: TASCHA_SNAKE_METALLIC_01 COPPER S36 | C137: 15130501 | D137: 7 | E137: 56.5 | F137: 129.95 | G137: 59.95 | H137: =G137/2 -> 29.975
A138: NO IMAGE | B138: TASCHA_SNAKE_METALLIC_01 COPPER S37 | C138: 15130501 | D138: 13 | E138: 56.5 | F138: 129.95 | G138: 59.95 | H138: =G138/2 -> 29.975
A139: NO IMAGE | B139: TASCHA_SNAKE_METALLIC_01 COPPER S38 | C139: 15130501 | D139: 6 | E139: 56.5 | F139: 129.95 | G139: 59.95 | H139: 29.975
A140: NO IMAGE | B140: TASCHA_SNAKE_METALLIC_01 COPPER S39 | C140: 15130501 | D140: 13 | E140: 56.5 | F140: 129.95 | G140: 59.95 | H140: 29.975
A141: NO IMAGE | B141: TASCHA_SNAKE_METALLIC_01 COPPER S40 | C141: 15130501 | D141: 5 | E141: 56.5 | F141: 129.95 | G141: 59.95 | H141: 29.975
A142: NO IMAGE | B142: TASCHA_SNAKE_METALLIC_01 COPPER S41 | C142: 15130501 | D142: 7 | E142: 56.5 | F142: 129.95 | G142: 59.95 | H142: 29.975
A143: NO IMAGE | B143: TASCHA_SNAKE_METALLIC_01 COPPER S42 | C143: 15130501 | D143: 3 | E143: 56.5 | F143: 129.95 | G143: 59.95 | H143: 29.975
A145: NO IMAGE | B145: TASCHA_SNAKE_METALLIC_01 NIGHT S36 | C145: 15130501 | D145: 6 | E145: 56.5 | F145: 129.95 | G145: 59.95 | H145: 29.975
A146: NO IMAGE | B146: TASCHA_SNAKE_METALLIC_01 NIGHT S37 | C146: 15130501 | D146: 12 | E146: 56.5 | F146: 129.95 | G146: 59.95 | H146: 29.975
A147: NO IMAGE | B147: TASCHA_SNAKE_METALLIC_01 NIGHT S38 | C147: 15130501 | D147: 17 | E147: 56.5 | F147: 129.95 | G147: 59.95 | H147: 29.975
A148: NO IMAGE | B148: TASCHA_SNAKE_METALLIC_01 NIGHT S39 | C148: 15130501 | D148: 17 | E148: 56.5 | F148: 129.95 | G148: 59.95 | H148: 29.975
A149: NO IMAGE | B149: TASCHA_SNAKE_METALLIC_01 NIGHT S40 | C149: 15130501 | D149: 20 | E149: 56.5 | F149: 129.95 | G149: 59.95 | H149: 29.975
A150: NO IMAGE | B150: TASCHA_SNAKE_METALLIC_01 NIGHT S41 | C150: 15130501 | D150: 9 | E150: 56.5 | F150: 129.95 | G150: 59.95 | H150: 29.975
B151: TASCHA_SUEDE SAND_OLD_PINK S39 | C151: 15110103 | D151: 1 | E151: 47.80434783 | F151: 109.95
A152: ++ | B152: TASCHA_SUEDE SAND_OLD_PINK S41 | C152: 15110103 | D152: 1 | E152: 47.80434783 | F152: 109.95
A153: ++ | B153: TASCHA_SUEDE SAND_OLD_PINK S42 | C153: 15110103 | D153: 1 | E153: 47.80434783 | F153: 109.95
B154: THYRA_FLOWER NATURAL S38 | C154: 14111802 | D154: 1 | E154: =F154/2.3 -> 52.15217391 | F154: 119.95
B155: TIRZAH_BASIC_FUR COGNAC S36 | C155: 14131203 | D155: 2 | E155: 73.89130435 | F155: 169.95
A156: ++ | B156: TIRZAH_BASIC_FUR COGNAC S37 | C156: 14131203 | D156: 3 | E156: 73.89130435 | F156: 169.95
A157: ++ | B157: TIRZAH_BASIC_FUR COGNAC S40 | C157: 14131203 | D157: 2 | E157: 73.89130435 | F157: 169.95
B158: TIRZAH_BASIC_FUR NERO S41 | C158: 14131203 | D158: 1 | E158: 73.89130435 | F158: 169.95
B159: TIRZAH_BASIC_FUR SMOKE S37 | C159: 14131203 | D159: 1 | E159: 73.89130435 | F159: 169.95
A160: ++ | B160: TIRZAH_BASIC_FUR SMOKE S38 | C160: 14131203 | D160: 1 | E160: 73.89130435 | F160: 169.95
B161: TIRZAH_BASIC_FUR TEQUILA S36 | C161: 14131203 | D161: 1 | E161: 73.89130435 | F161: 169.95
A162: ++ | B162: TIRZAH_BASIC_FUR TEQUILA S37 | C162: 14131203 | D162: 3 | E162: 73.89130435 | F162: 169.95
B163: TIRZAH_BASIC_LTHR NERO S40 | C163: 14131202 | D163: 1 | E163: 65.19565217 | F163: 149.95
B164: TIRZAH_SNAKE NERO S38 | C164: 15130701 | D164: 1 | E164: 73.89130435 | F164: 169.95
A165: NO IMAGE | B165: TIRZAH_SNAKE SMOKE S36 | C165: 15130701 | D165: 2 | E165: 73.89130435 | F165: 169.95
B166: TIRZAH_SNAKE_LTHR INDIGO S36 | C166: 14131201 | D166: 3 | E166: 73.89130435 | F166: 169.95
B167: TIRZAH_SNAKE_LTHR NERO S36 | C167: 14131201 | D167: 2 | E167: 73.89130435 | F167: 169.95
A168: ++ | B168: TIRZAH_SNAKE_LTHR NERO S37 | C168: 14131201 | D168: 1 | E168: 73.89130435 | F168: 169.95
A169: ++ | B169: TIRZAH_SNAKE_LTHR NERO S38 | C169: 14131201 | D169: 1 | E169: 73.89130435 | F169: 169.95
B170: TIRZAH_SNAKE_LTHR SMOKE S36 | C170: 14131201 | D170: 2 | E170: 73.89130435 | F170: 169.95
A171: NO IMAGE | B171: TOYA_SNAKE MINT S42 | C171: 14110201 | D171: 1 | E171: 65.19565217 | F171: 149.95
B172: TOYA_SNAKE NERO S37 | C172: 15130602 | D172: 7 | E172: 65.19565217 | F172: 149.95
B173: TOYA_SNAKE SMOKE S36 | C173: 15130602 | D173: 1 | E173: 65.19565217 | F173: 149.95
B174: TOYA_SNAKE_LTHR DK_GREY S36 | C174: 13130404 | D174: 1 | E174: 69.54347826 | F174: 159.95
A175: ++ | B175: TOYA_SNAKE_LTHR DK_GREY S39 | C175: 13130404 | D175: 2 | E175: 69.54347826 | F175: 159.95
A176: ++ | B176: TOYA_SNAKE_LTHR DK_GREY S41 | C176: 13130404 | D176: 1 | E176: 69.54347826 | F176: 159.95
B177: TRACEE_LOW CREAM S39 | C177: 14110501 | D177: 3 | E177: 60.84782609 | F177: 139.95
A178: ++ | B178: TRACEE_LOW CREAM S40 | C178: 14110501 | D178: 1 | E178: 60.84782609 | F178: 139.95
A179: NO IMAGE | B179: TRACEE_LOW LT_GREY S37 | C179: 14110501 | D179: 1 | E179: 60.84782609 | F179: 139.95
A180: NO IMAGE | B180: TRACEE_LOW LT_GREY S39 | C180: 14110501 | D180: 2 | E180: 60.84782609 | F180: 139.95
B181: TRACEE_LOW OFF_WHITE S36 | C181: 14110501 | D181: 1 | E181: 60.84782609 | F181: 139.95
A182: NO IMAGE | B182: TROJA_SUEDE OLD_PINK S40 | C182: 14111701 | D182: 1 | E182: =F182/2.3 -> 65.19565217 | F182: 149.95
A183: NO IMAGE | B183: TROY_BUFALO AZZURO S40 | C183: 14120102 | D183: 1 | E183: 60.84782609 | F183: 139.95
A184: NO IMAGE | B184: TROY_BUFALO AZZURO S41 | C184: 14120102 | D184: 1 | E184: 60.84782609 | F184: 139.95
A185: NO IMAGE | B185: TROY_BUFALO AZZURO S43 | C185: 14120102 | D185: 2 | E185: 60.84782609 | F185: 139.95
A186: NO IMAGE | B186: TROY_BUFALO DK_GREY S43 | C186: 14120102 | D186: 2 | E186: 60.84782609 | F186: 139.95
A187: NO IMAGE | B187: TROY_BUFALO LT_GREY S40 | C187: 14120102 | D187: 1 | E187: 60.84782609 | F187: 139.95
A188: NO IMAGE | B188: TROY_BUFALO LT_GREY S42 | C188: 14120102 | D188: 1 | E188: 60.84782609 | F188: 139.95
B189: YASMIN_HENNA COGNAC S36 | C189: 15112003 | D189: 1 | E189: 52.15217391 | F189: 119.95
B190: YASMIN_SNAKE_01 NIGHT S37 | C190: 16112004 | D190: 2 | E190: 56.5 | F190: 129.95
B191: YASMIN_SNAKE_01 TAUPE S37 | C191: 16112004 | D191: 3 | E191: 56.5 | F191: 129.95
A192: ++ | B192: YASMIN_SNAKE_01 TAUPE S38 | C192: 16112004 | D192: 1 | E192: 56.5 | F192: 129.95
D193: =SUM(D2:D192) -> 862

Sheet Women
B1: Article | C1: Description | D1: RealStock | E1: Wholesale | F1: Retail
B2: DACEY_CROCO_LTHR_WOMEN TABACCO S36 | C2: 14131603 | D2: 1 | E2: =F2/2.3 -> 73.89130435 | F2: 169.95
A3: ++ | B3: DACEY_CROCO_LTHR_WOMEN TABACCO S37 | C3: 14131603 | D3: 1 | E3: 73.89130435 | F3: 169.95
A4: ++ | B4: DACEY_CROCO_LTHR_WOMEN TABACCO S40 | C4: 14131603 | D4: 2 | E4: 73.89130435 | F4: 169.95
B5: DACEY_LTHR_WOMEN CAFE S36 | C5: 14131601 | D5: 1 | E5: 73.89130435 | F5: 169.95
A6: ++ | B6: DACEY_LTHR_WOMEN CAFE S37 | C6: 14131601 | D6: 1 | E6: 73.89130435 | F6: 169.95
B7: DACEY_LTHR_WOMEN NERO S36 | C7: 14131601 | D7: 2 | E7: 73.89130435 | F7: 169.95
A8: ++ | B8: DACEY_LTHR_WOMEN NERO S37 | C8: 14131601 | D8: 1 | E8: 73.89130435 | F8: 169.95
A9: ++ | B9: DACEY_LTHR_WOMEN NERO S38 | C9: 14131601 | D9: 1 | E9: 73.89130435 | F9: 169.95
A10: ++ | B10: DACEY_LTHR_WOMEN NERO S40 | C10: 14131601 | D10: 1 | E10: 73.89130435 | F10: 169.95
B11: ROSELLE_FUR BLACK S36 | C11: 13130801 | D11: 14 | E11: =F11/2.3 -> 73.89130435 | F11: 169.95
A12: ++ | B12: ROSELLE_FUR BLACK S37 | C12: 13130801 | D12: 27 | E12: 73.89130435 | F12: 169.95
A13: ++ | B13: ROSELLE_FUR BLACK S38 | C13: 13130801 | D13: 48 | E13: 73.89130435 | F13: 169.95
A14: ++ | B14: ROSELLE_FUR BLACK S39 | C14: 13130801 | D14: 58 | E14: 73.89130435 | F14: 169.95
A15: ++ | B15: ROSELLE_FUR BLACK S40 | C15: 13130801 | D15: 27 | E15: 73.89130435 | F15: 169.95
A16: ++ | B16: ROSELLE_FUR BLACK S41 | C16: 13130801 | D16: 26 | E16: 73.89130435 | F16: 169.95
A17: ++ | B17: ROSELLE_FUR BLACK S42 | C17: 13130801 | D17: 0 | E17: 73.89130435 | F17: 169.95
B18: ROSELLE_FUR BROWN S36 | C18: 13130801 | D18: 11 | E18: 73.89130435 | F18: 169.95
A19: ++ | B19: ROSELLE_FUR BROWN S37 | C19: 13130801 | D19: 24 | E19: 73.89130435 | F19: 169.95
A20: ++ | B20: ROSELLE_FUR BROWN S38 | C20: 13130801 | D20: 22 | E20: 73.89130435 | F20: 169.95
A21: ++ | B21: ROSELLE_FUR BROWN S39 | C21: 13130801 | D21: 20 | E21: 73.89130435 | F21: 169.95
A22: ++ | B22: ROSELLE_FUR BROWN S40 | C22: 13130801 | D22: 10 | E22: 73.89130435 | F22: 169.95
A23: ++ | B23: ROSELLE_FUR BROWN S41 | C23: 13130801 | D23: 8 | E23: 73.89130435 | F23: 169.95
B24: ROSELLE_FUR WINE S39 | C24: 13130801 | D24: 1 | E24: 73.89130435 | F24: 169.95
B25: TRACEY_CROCO_FUR BROWN S36 | C25: 13130701 | D25: 1 | E25: =F25/2.3 -> 86.93478261 | F25: 199.95
A26: ++ | B26: TRACEY_CROCO_FUR BROWN S38 | C26: 13130701 | D26: 1 | E26: 86.93478261 | F26: 199.95
B27: TRACEY_CROCO_LTHR WINE S37 | C27: 13130702 | D27: 1 | E27: 78.23913043 | F27: 179.95
A28: ++ | B28: TRACEY_CROCO_LTHR WINE S39 | C28: 13130702 | D28: 1 | E28: 78.23913043 | F28: 179.95
B29: TRACEY_FUR COGNAC S39 | C29: 14130502 | D29: 1 | E29: 86.93478261 | F29: 199.95
B30: TRACEY_FUR WINE S38 | C30: 14130502 | D30: 1 | E30: 86.93478261 | F30: 199.95
B31: TRACEY_LTHR COGNAC S36 | C31: 14130501 | D31: 1 | E31: 78.23913043 | F31: 179.95
A32: ++ | B32: TRACEY_LTHR COGNAC S37 | C32: 14130501 | D32: 3 | E32: 78.23913043 | F32: 179.95
A33: ++ | B33: TRACEY_LTHR COGNAC S38 | C33: 14130501 | D33: 2 | E33: 78.23913043 | F33: 179.95
A34: ++ | B34: TRACEY_LTHR COGNAC S41 | C34: 14130501 | D34: 1 | E34: 78.23913043 | F34: 179.95
B35: TREBBLE_FUR CAFE S37 | C35: 14131101 | D35: 1 | E35: 78.23913043 | F35: 179.95
B36: TREBBLE_FUR COGNAC S37 | C36: 14131101 | D36: 2 | E36: 78.23913043 | F36: 179.95
A37: ++ | B37: TREBBLE_FUR COGNAC S38 | C37: 14131101 | D37: 2 | E37: 78.23913043 | F37: 179.95
A38: ++ | B38: TREBBLE_FUR COGNAC S39 | C38: 14131101 | D38: 3 | E38: 78.23913043 | F38: 179.95
B39: TREBBLE_FUR SMOKE S37 | C39: 14131101 | D39: 2 | E39: =F39/2.3 -> 78.23913043 | F39: 179.95
A40: ++ | B40: TREBBLE_FUR SMOKE S38 | C40: 14131101 | D40: 1 | E40: 78.23913043 | F40: 179.95
A41: ++ | B41: TREBBLE_FUR SMOKE S39 | C41: 14131101 | D41: 3 | E41: 78.23913043 | F41: 179.95
A42: ++ | B42: TREBBLE_FUR SMOKE S40 | C42: 14131101 | D42: 2 | E42: 78.23913043 | F42: 179.95
B43: TROYAN_HIGH_FUR_WOMEN BLACK S37 | C43: 13130201 | D43: 1 | E43: 82.58695652 | F43: 189.95
B44: TROYAN_HIGH_FUR_WOMEN BROWN S37 | C44: 13130201 | D44: 1 | E44: 82.58695652 | F44: 189.95
B45: TROYAN_HIGH_FUR_WOMEN INDIGO S37 | C45: 13130201 | D45: 1 | E45: 82.58695652 | F45: 189.95
A46: ++ | B46: TROYAN_HIGH_FUR_WOMEN INDIGO S41 | C46: 13130201 | D46: 1 | E46: 82.58695652 | F46: 189.95
B47: TROYAN_HIGH_FUR_WOMEN WINE S37 | C47: 13130201 | D47: 1 | E47: 82.58695652 | F47: 189.95
A48: ++ | B48: TROYAN_HIGH_FUR_WOMEN WINE S41 | C48: 13130201 | D48: 3 | E48: 82.58695652 | F48: 189.95
B49: TROYAN_HIGH_GUM_FUR_WMN SMOKE S37 | C49: 14130204 | D49: 1 | E49: 82.58695652 | F49: 189.95
B50: TROYAN_HIGH_LTHR_STUDS_WOM. BLACK S38 | C50: 13130204 | D50: 2 | E50: 95.63043478 | F50: 219.95
B51: TROYAN_HIGH_LTHR_STUDS_WOM. BROWN S39 | C51: 13130204 | D51: 1 | E51: 95.63043478 | F51: 219.95
B52: TROYAN_HIGH_VNT_FUR_WMN COGNAC S39 | C52: 14130206 | D52: 1 | E52: 82.58695652 | F52: 189.95
D53: =SUM(D2:D52) -> 349
